[Event "2nd Bieszczady Chess-ch A 2022"]
[Site "Bystre"]
[Date "2022.07.19"]
[Round "2.7"]
[White "Palacki, Rafal"]
[Black "Kucharski, Bartlomiej"]
[Result "1/2-1/2"]
[ECO "B06"]
[WhiteElo "1832"]
[BlackElo "2003"]
[Annotator "TA"]
[PlyCount "105"]
[EventDate "2022.07.17"]
[EventCountry "POL"]
[SourceTitle "playchess.com"]
[Source "ChessBase"]
[SourceQuality "1"]
[TimeControl "5400+30"]

{[%evp 10,105,52,27,52,0,0,0,2,0,0,-13,30,16,75,4,39,-43,33,0,0,-1,27,-27,-23,-166,-23,-51,-48,-45,-41,-37,-50,-100,15,-36,142,117,126,94,214,210,172,60,53,62,145,111,96,106,90,86,105,88,112,76,70,59,96,47,136,0,0,0,26,-106,-108,-109,-106,-97,-103,-70,61,59,39,36,39,20,24,0,0,9,11,5,30,0,17,0,5,0,0,0,0,0,0,0,0,0]} 1. e4 {[%emt 0:01:27]} d6 {[%emt 0:00:21]} 2. d4 {[%emt 0:00:04]} g6 {[%emt 0:00:06]} 3. Nc3 {[%emt 0:01:06]} Bg7 {[%emt 0:00:17]} 4. Be3 {[%emt 0:00:25]} a6 {[%emt 0:00:27]} 5. a4 {[%emt 0:01:01]} b6 {[%emt 0:00:30]} 6. Bc4 {[%emt 0:02:01]} e6 $1 {[%emt 0:04:14] The main line 6...e6 scores better than 6...Bb7. B06: Modern Defence.} 7. f4 {[%emt 0:08:12]} (7. d5) ({White should play} 7. d5 $14) 7... Bb7 $11 {[%emt 0:05:16]} 8. Nf3 {[%emt 0:00:26] [#]} Nf6 $146 {[%emt 0:13:44]} (8... Ne7 9. O-O d5 10. exd5 Nxd5 11. Nxd5 Bxd5 12. Bd3 a5 13. Ne5 O-O 14. Qg4 Nd7) ({Predecessor:} 8... Ne7 9. O-O d5 10. exd5 Nxd5 11. Nxd5 Bxd5 12. Bd3 a5 13. Ne5 O-O 14. Qg4 Nd7 {0-1 (64) Thing,B (2222)-Vavulin,M (2556) Moscow 2019}) 9. e5 {[%emt 0:04:42]} Ng4 {[%emt 0:02:08]} 10. Bc1 {[%emt 0:01:23]} (10. Qe2) 10... d5 {[%emt 0:07:43]} (10... dxe5 11. dxe5 (11. fxe5 c5) 11... Qxd1+ 12. Nxd1 Nc6) 11. Be2 {[%emt 0:06:22]} h5 {[%emt 0:00:40]} (11... c5 $1 $11) 12. Ng5 {[%emt 0:09:41]} (12. h3 Nh6 $11) (12. O-O $16) 12... Nh6 {[%emt 0:03:24]} 13. Be3 {[%emt 0:00:49]} (13. a5 $14) 13... Nd7 {[%emt 0:02:47]} (13... c5 $15) 14. O-O {[%emt 0:10:01]} c5 {[%emt 0:10:32]} 15. Bf2 {[%emt 0:07:58]} Nf5 {[%emt 0:09:49]} (15... cxd4 {keeps more tension.} 16. Qxd4 Ng4 17. Bh4 Qc7) 16. dxc5 {[%emt 0:04:06]} (16. Bd3) (16. Bd3 $142) 16... bxc5 {[%emt 0:00:45][%cal Od7e5]} 17. Bf3 {[%emt 0:00:12] [#]} (17. h4) (17. h4 $11 {and White stays safe.}) 17... Qe7 {[%emt 0:06:02]} (17... Nxe5 18. Bxc5 (18. fxe5 Qxg5) 18... Rc8) (17... Nxe5 $1 $19 {[%mdl 512]} 18. Bxc5 (18. fxe5 Qxg5) 18... Rc8) 18. Nxd5 {[%emt 0:08:53]} Bxd5 {[%emt 0:11:44]} 19. Bxd5 {[%emt 0:00:05]} exd5 {[%emt 0:00:06]} 20. Qxd5 {[%emt 0:00:05]} O-O {[%emt 0:02:40][%cal Rd7e5]} 21. Rad1 {[%emt 0:13:12]} (21. Rfe1 $15) 21... Rfd8 {[%emt 0:07:03] [#]} (21... Nd4 22. Bxd4 cxd4) (21... Nd4 $1 $17 {[%cal Rd4e2] And now ...Ne2+ would win.} 22. Nf3 Rfd8 23. Nxd4 cxd4) 22. e6 {[%emt 0:00:54] [#]} (22. Nxf7 Qxf7 23. e6) (22. Nxf7 $1 $11 Qxf7 23. e6) 22... Nf6 $2 {[%emt 0:03:40]} (22... fxe6 23. Qxe6+ Qxe6 24. Nxe6 $14) (22... Ne5 $1 $15 {keeps the upper hand.} 23. Qb3 (23. Qa2 Bf6) 23... Bh6 24. exf7+ Nxf7) 23. exf7+ $16 {[%emt 0:03:35]} Kh8 {[%emt 0:00:23]} 24. Qxc5 {[%emt 0:01:06]} Bf8 {[%emt 0:05:02]} (24... Qxc5 $16 {was necessary.} 25. Bxc5 Rdc8) 25. Qxe7 $18 {[%emt 0:08:11] Chess con chili.} Bxe7 {[%emt 0:00:17]} 26. Ne6 {[%emt 0:01:33]} (26. Rxd8+ $1 $18 Rxd8 27. Re1) 26... Rdc8 $1 $14 {[%emt 0:01:47]} 27. c3 {[%emt 0:00:45]} Nh6 {[%emt 0:01:00]} (27... Rab8 $14) 28. Rfe1 {[%emt 0:03:44] White is much more active.} (28. Rde1) 28... Nxf7 {[%emt 0:00:41]} 29. Ng5 $1 $36 {[%emt 0:00:03][%mdl 2048] White is really pushing.} Nxg5 {[%emt 0:00:58]} 30. fxg5 {[%emt 0:01:27]} Ng8 {[%emt 0:00:16]} 31. h4 {[%emt 0:00:37]} Bc5 {[%emt 0:00:45]} 32. Re6 {[%emt 0:00:33]} Bxf2+ {[%emt 0:00:27]} 33. Kxf2 {[%emt 0:00:04]} Rc4 {[%emt 0:00:05]} (33... Rf8+ 34. Kg3 Rab8) 34. Rxg6 {[%emt 0:01:28]} ({Better is} 34. a5 $16) 34... Rf8+ {[%emt 0:01:00] [#]} (34... Ne7 35. Rh6+ Kg8) (34... Ne7 $14 35. Re6 Rf4+ 36. Ke3 Rf7) 35. Kg3 {[%emt 0:00:21]} (35. Kg1 $1 $16) 35... Ne7 $11 {[%emt 0:00:11]} 36. Rh6+ {[%emt 0:00:44]} Kg7 {[%emt 0:00:05]} 37. Rxh5 {[%emt 0:00:38]} (37. Rd7 $11 Rf7 38. Kh3) 37... Nf5+ $17 {[%emt 0:00:52]} 38. Kh3 {[%emt 0:00:24] [#] aiming for Rf1.} Kg6 $1 {[%emt 0:00:51]} 39. g4 {[%emt 0:00:23] [#] Hoping for Rf1.} Re8 $1 {[%emt 0:00:37]} 40. Rd3 {[%emt 0:00:00] Threatens to win with Rf3.} ({Don't go for} 40. gxf5+ $2 Kxh5 41. g6 Rxh4+ 42. Kg2 Rxa4 $19) 40... Rxa4 {[%emt 0:00:00]} 41. Rf3 $14 {[%emt 0:00:00]} Ne3 {[%emt 0:00:00]} 42. Rh6+ {[%emt 0:00:00]} Kg7 {[%emt 0:00:00]} 43. Rhf6 {[%emt 0:00:00] Threatening R3f4.} (43. h5 $5 {[%cal Rf3f6]} Nxg4 44. Rc6 $16 (44. Rg6+ Kh7 $16)) 43... Nxg4 {[%emt 0:00:00]} 44. Rf7+ {[%emt 0:00:00]} Kg8 {[%emt 0:00:00]} ({Don't play} 44... Kg6 45. R7f4 Rxf4 46. Rxf4 $16) 45. R7f4 {[%emt 0:00:00]} Rxf4 {[%emt 0:00:00]} 46. Rxf4 $11 {[%emt 0:00:00][%mdl 4096] Endgame KRN-KR} Ne3 {[%emt 0:00:00]} 47. Rf6 {[%emt 0:00:00][%mdl 1024] White has compensation.} a5 {[%emt 0:00:00] The position is equal.} 48. Ra6 {[%emt 0:00:00]} Nc4 {[%emt 0:00:00]} 49. b3 {[%emt 0:00:00]} Nd2 {[%emt 0:00:00]} 50. b4 {[%emt 0:00:06]} axb4 {[%emt 0:00:00]} 51. cxb4 {[%emt 0:00:06]} Rb8 {[%emt 0:01:29]} 52. Ra4 {[%emt 0:02:34]} Ne4 {[%emt 0:01:09]} 53. b5 {[%emt 0:01:55] Weighted Error Value: White=0.35/Black=0.34} 1/2-1/2

[Event "2nd Bieszczady Chess-ch A 2022"]
[Site "Bystre"]
[Date "2022.07.19"]
[Round "2.8"]
[White "Hnatyshyn, Anastasiia"]
[Black "Janzer, Hubert"]
[Result "1-0"]
[ECO "C06"]
[WhiteElo "1931"]
[BlackElo "1839"]
[Annotator "TA"]
[PlyCount "109"]
[EventDate "2022.07.17"]
[EventCountry "POL"]
[SourceTitle "playchess.com"]
[Source "ChessBase"]
[SourceQuality "1"]
[TimeControl "5400+30"]

{[%evp 22,109,47,46,34,43,53,19,10,20,40,26,33,0,20,-32,12,4,0,7,0,8,62,62,59,41,75,8,60,64,62,43,66,67,73,70,63,64,47,39,62,41,114,42,41,20,20,24,12,13,24,0,68,68,60,-30,0,-25,0,0,0,0,0,0,0,0,0,0,67,44,365,360,330,320,499,485,464,438,521,463,500,490,664,657,639,627,591,547,488,446]} 1. e4 {[%emt 0:00:03]} e6 {[%emt 0:00:04]} 2. d4 {[%emt 0:00:04]} d5 {[%emt 0:00:06]} 3. Nd2 {[%emt 0:00:05]} Nf6 {[%emt 0:00:05]} 4. e5 {[%emt 0:00:07]} Nfd7 {[%emt 0:00:03]} 5. Bd3 {[%emt 0:00:07]} c5 {[%emt 0:00:03]} 6. c3 {[%emt 0:00:05]} Nc6 {[%emt 0:00:03]} 7. Ne2 {[%emt 0:00:11]} cxd4 {[%emt 0:00:07]} 8. cxd4 {[%emt 0:00:06]} f6 {[%emt 0:00:04]} 9. exf6 {[%emt 0:00:04]} Nxf6 {[%emt 0:00:06]} 10. Nf3 {[%emt 0:00:12]} Bd6 {[%emt 0:00:46]} 11. O-O {[%emt 0:00:08]} Qc7 {[%emt 0:00:04]} 12. Bd2 {[%emt 0:00:26]} O-O {[%emt 0:00:35] C06: French Tarrasch: 3...Nf6 4 e5 Nfd7 5 Bd3 main lines.} 13. Rc1 {[%emt 0:00:05]} Bd7 {[%emt 0:13:54]} 14. Ng3 {[%emt 0:07:25]} Qb6 {[%emt 0:11:44][%csl LRb2,LRd4] The position is equal.} 15. Bc3 {[%emt 0:05:17]} Bf4 {[%emt 0:02:35] Against Qd2} 16. Ra1 {[%emt 0:13:32]} Rac8 {[%emt 0:03:43] [#]} 17. Ne5 $146 {[%emt 0:02:41]} ({Predecessor:} 17. Re1 Kh8 18. Bc2 a6 19. a3 Bh6 20. Ba4 Nb8 21. Bb4 Bxa4 22. Qxa4 Rfe8 23. Ne5 {½-½ (68) Guido,F (2367)-Bruno,F (2417) Arco 2015}) 17... Be8 {[%emt 0:11:35]} 18. Ng4 {[%emt 0:11:53]} (18. Nxc6 $11 Rxc6 19. Qf3) 18... Ne7 {[%emt 0:10:59]} 19. Re1 {[%emt 0:04:59]} Bg6 {[%emt 0:02:34]} 20. Bxg6 {[%emt 0:00:49]} Nxg6 {[%emt 0:00:14]} 21. Nxf6+ {[%emt 0:00:59]} gxf6 (21... Rxf6 $11 22. a3 Bd6) 22. Nh5 $14 {[%emt 0:03:12]} Bb8 {[%emt 0:02:32]} 23. Re3 {[%emt 0:05:22]} Qd6 {[%emt 0:00:55]} 24. Rh3 {[%emt 0:00:16]} (24. f4 $16) 24... b6 {[%emt 0:02:00]} (24... Rf7 $11) 25. Qd2 {[%emt 0:01:22] [#] Strongly threatening Bb4.} a5 {[%emt 0:01:54] Against Bb4} 26. Rd1 {[%emt 0:07:51][%cal Ba1d1,Bd1d3,Bd3e3,Be3e6,Be6e7][%mdl 32]} Nf4 {[%emt 0:03:53]} 27. Nxf4 {[%emt 0:04:20]} Qxf4 {[%emt 0:00:07]} 28. Qe2 {[%emt 0:00:10]} Qd6 {[%emt 0:06:28]} 29. Rdd3 {[%emt 0:03:20] Threatens to win with Qg4+.} Rf7 {[%emt 0:03:14][%cal Bf8f7,Bf7g7,Bg7g4][%mdl 32]} 30. Qh5 {[%emt 0:02:45]} Qe7 {[%emt 0:01:07]} (30... Qf4 31. Rde3 (31. Bd2 Qf5 $11) 31... Qf5 32. Qxf5 exf5 33. Rh5 $16) 31. Rde3 {[%emt 0:01:37]} b5 {[%emt 0:01:05]} ({Better is} 31... Rg7 $14) 32. Qg4+ {[%emt 0:05:30]} (32. Bxa5 $16 b4 33. Re1) 32... Rg7 {[%emt 0:00:49]} 33. Qxe6+ {[%emt 0:00:11]} (33. Qe2 {is interesting.} Qd7 34. Bxa5 Rc1+ 35. Be1) 33... Qxe6 {[%emt 0:00:06]} 34. Rxe6 {[%emt 0:00:04] Threatening g3.} b4 {[%emt 0:00:09]} 35. Be1 {[%emt 0:00:19]} Kf7 {[%emt 0:01:18]} 36. Rhe3 {[%emt 0:00:17]} (36. Re2 $5 {[%cal Rh3h5]}) 36... Rg4 {[%emt 0:01:03]} (36... Be5 $11 37. Ra6 Bxd4) 37. Re7+ {[%emt 0:02:40]} Kg6 {[%emt 0:00:39]} 38. Rd3 {[%emt 0:00:45]} (38. Re8 $1 $14 Rxe8 39. Rxe8) 38... Rc2 {[%emt 0:01:26]} 39. Re8 {[%emt 0:00:41]} Ba7 {[%emt 0:03:19]} 40. Rg8+ {[%emt 0:00:00]} Kf5 {[%emt 0:00:00]} 41. Rxg4 {[%emt 0:00:00]} ({But not} 41. Rf3+ Rf4 42. Ra8 Bxd4 43. Rxa5 Rxb2 $17) 41... Kxg4 {[%emt 0:00:00]} 42. Rd2 $1 {[%emt 0:00:00]} Rxd2 {[%emt 0:00:00][%mdl 64] [#] Remove Defender} 43. Bxd2 {[%emt 0:00:00]} Bxd4 $11 {[%emt 0:00:00][%mdl 4096] Endgame KB-KB} 44. b3 {[%emt 0:00:00]} Bc3 {[%emt 0:00:00]} (44... Kf5 $11 45. Kf1 Bc3) 45. Bc1 {[%emt 0:00:00]} d4 $2 {[%emt 0:00:00][%mdl 8192] This costs Black the game.} ({Black should try} 45... Kf5 $14 46. f3 h5) 46. f3+ $18 {[%emt 0:00:00]} Kf5 {[%emt 0:00:00] Hoping for ...d3.} 47. Kf2 {[%emt 0:00:00]} h5 {[%emt 0:00:00]} (47... Ke6 {might work better.} 48. Ke2 Ke5) 48. Ke2 {[%emt 0:00:00] White is clearly winning.} Ke5 {[%emt 0:00:00]} 49. Kd3 {[%emt 0:00:00]} Kd5 {[%emt 0:00:00]} 50. Bf4 {[%emt 0:00:00]} f5 {[%emt 0:02:44]} 51. Bc7 {[%emt 0:00:00]} Kc5 {[%emt 0:00:53]} 52. Bxa5 {[%emt 0:00:00]} Be1 {[%emt 0:00:05]} 53. Bd8 {[%emt 0:00:00]} Kd5 {[%emt 0:01:17]} 54. Be7 {[%emt 0:00:11]} Ke6 {[%emt 0:02:26]} 55. Bc5 {[%emt 0:00:17] Weighted Error Value: White=0.17 (very precise) /Black=0.45} 1-0

[Event "2nd Bieszczady Chess-ch A 2022"]
[Site "Bystre"]
[Date "2022.07.19"]
[Round "3.1"]
[White "Wilk, Tomasz"]
[Black "Razin, Vadim"]
[Result "0-1"]
[ECO "C00"]
[WhiteElo "1900"]
[BlackElo "2428"]
[Annotator "TA"]
[PlyCount "54"]
[EventDate "2022.07.17"]
[EventCountry "POL"]
[SourceTitle "playchess.com"]
[Source "ChessBase"]
[SourceQuality "1"]
[TimeControl "5400+30"]

{[%evp 13,54,-9,-33,-30,-22,-14,-36,-103,-91,-93,-93,-121,-119,-106,-104,-127,-137,-154,-137,-162,-156,-146,-148,-159,-152,-151,-160,-177,-177,-181,-180,-177,-169,-174,-168,-344,-356,-350,-346,-447,-440,-436,-404]} 1. e4 {[%emt 0:00:03]} e6 {[%emt 0:00:04]} 2. d3 {[%emt 0:00:35]} d5 {[%emt 0:00:07]} 3. Nd2 {[%emt 0:00:05]} Nf6 {[%emt 0:00:04]} 4. Ngf3 {[%emt 0:00:19]} Nc6 {[%emt 0:00:14]} 5. e5 {[%emt 0:01:08]} Nd7 {[%emt 0:00:05]} 6. d4 {[%emt 0:00:04]} f6 {[%emt 0:00:06]} 7. exf6 {[%emt 0:00:48]} Qxf6 {[%emt 0:00:07]} 8. Bd3 {[%emt 0:02:37] [#] C00: French: Unusual White 2nd moves.} Nxd4 $146 {[%emt 0:02:13]} ({Predecessor:} 8... Bd6 9. O-O O-O 10. c3 Kh8 11. Qb3 Nb6 12. Qc2 h6 13. b4 a6 14. Bb2 e5 15. dxe5 Nxe5 16. Nxe5 Qxe5 {½-½ (35) Martin Alvarez,I (2092)-Espineira Gonzalez,D (2341) Lorca 2006}) 9. Nxd4 {[%emt 0:00:08]} Qxd4 {[%emt 0:00:04]} 10. Qh5+ {[%emt 0:00:10]} ({White should play} 10. Nf3 $15 Qf6 11. O-O) 10... g6 $17 {[%emt 0:00:50]} 11. Qe2 {[%emt 0:00:23]} Qe5 {[%emt 0:00:32]} 12. O-O {[%emt 0:01:43]} Qxe2 {[%emt 0:00:21]} 13. Bxe2 {[%emt 0:00:05]} Bg7 {[%emt 0:00:32]} 14. h4 {[%emt 0:03:25]} O-O {[%emt 0:07:17]} 15. Nf3 {[%emt 0:03:08]} c6 {[%emt 0:02:45]} 16. c3 {[%emt 0:00:56]} Nc5 {[%emt 0:01:15][%cal Bd7c5,Bc5a4,Ba4b6,Bb6c4,Bc4b2][%mdl 32]} 17. Be3 {[%emt 0:00:44] [#]} Na4 {[%emt 0:00:38]} 18. Rab1 {[%emt 0:01:44]} e5 {[%emt 0:01:59]} 19. Bd1 {[%emt 0:01:41]} Nb6 {[%emt 0:00:36]} 20. Bc5 {[%emt 0:00:33]} Re8 {[%emt 0:01:19]} 21. Bb3 {[%emt 0:00:48]} Bf5 {[%emt 0:09:25][%cal Bc8f5,Bf5d3,Bd3c4][%mdl 32]} 22. Rbc1 {[%emt 0:02:46]} Bd3 {[%emt 0:05:19]} 23. Rfe1 {[%emt 0:00:27]} Nc4 {[%emt 0:05:32]} 24. Rcd1 $2 {[%emt 0:00:36] [#]} (24. Bxc4 Bxc4 25. a4) 24... Nxb2 $19 {[%emt 0:00:52]} 25. Rd2 {[%emt 0:00:18]} e4 {[%emt 0:00:16]} 26. Nd4 {[%emt 0:01:36]} Nc4 {[%emt 0:00:14]} 27. Bxc4 {[%emt 0:00:29]} Bxc4 {[%emt 0:00:08] White got outplayed after the opening.  Weighted Error Value: White=0.31/Black=0.02 (flawless)} 0-1

[Event "2nd Bieszczady Chess-ch A 2022"]
[Site "Bystre"]
[Date "2022.07.19"]
[Round "3.2"]
[White "Marszalek, Maciej"]
[Black "Sygulski, Piotr"]
[Result "1-0"]
[ECO "D30"]
[WhiteElo "2268"]
[BlackElo "2013"]
[Annotator "TA"]
[PlyCount "113"]
[EventDate "2022.07.17"]
[EventCountry "POL"]
[SourceTitle "playchess.com"]
[Source "ChessBase"]
[SourceQuality "1"]
[TimeControl "5400+30"]

{[%evp 14,113,36,29,59,54,62,56,70,55,71,64,55,45,54,26,30,25,19,18,25,22,44,45,42,41,43,23,41,30,29,27,39,33,59,37,82,1,0,0,41,41,105,102,159,147,145,152,143,151,142,0,0,0,29,0,0,0,0,0,83,83,123,129,118,122,185,185,184,179,184,184,191,184,184,184,184,184,184,184,185,170,164,163,206,179,207,165,307,297,297,297,297,290,327,327,405,344,390,375,706,369]} 1. d4 {[%emt 0:00:22]} d5 {[%emt 0:00:14]} 2. c4 {[%emt 0:00:02]} e6 {[%emt 0:00:19]} 3. g3 {[%emt 0:00:16]} c6 {[%emt 0:00:58]} 4. Bg2 {[%emt 0:00:09]} Nf6 {[%emt 0:00:33]} 5. Nf3 {[%emt 0:00:05][%cal Bg1f3,Bf3d2,Bd2e4][%mdl 32]} Bd6 {[%emt 0:01:47]} 6. O-O {[%emt 0:00:45]} O-O {[%emt 0:02:25] 6...0-0 scores better than 6...Nbd7.} 7. Nfd2 {[%emt 0:02:45]} Nbd7 {[%emt 0:06:28][%cal Bb8d7,Bd7f6,Bf6g4,Bg4e3][%mdl 32]} 8. Nc3 {[%emt 0:02:42]} Qe7 {[%emt 0:08:10] E01: Catalan: Early deviations.} 9. e4 {[%emt 0:00:30]} dxe4 {[%emt 0:01:12]} 10. Ndxe4 {[%emt 0:00:24]} Bc7 {[%emt 0:00:42] White is slightly better.} 11. Re1 {[%emt 0:01:22]} h6 {[%emt 0:07:57]} 12. Nxf6+ {[%emt 0:00:42]} Nxf6 {[%emt 0:00:20]} 13. Be3 {[%emt 0:02:36]} Rd8 {[%emt 0:03:43]} 14. Qc2 {[%emt 0:06:03] [#]} Ng4 $146 {[%emt 0:03:40]} ({Predecessor:} 14... Qf8 15. Rad1 Ba5 16. a3 Bc7 17. b4 a5 18. b5 Bd7 19. a4 Rac8 {0-1 (49) Borisova,E (2344)-Mamedjarova,T (2310) Moscow 2019}) 15. Rad1 {[%emt 0:04:05]} Nxe3 {[%emt 0:06:11]} 16. Rxe3 {[%emt 0:01:00]} Qf8 {[%emt 0:08:24]} 17. a3 {[%emt 0:02:55]} Bb6 {[%emt 0:01:03]} 18. c5 {[%emt 0:00:53]} Bc7 {[%emt 0:00:05]} 19. b4 {[%emt 0:00:21]} Bd7 {[%emt 0:03:25]} 20. Qb3 {[%emt 0:05:22]} a6 {[%emt 0:02:23]} 21. f4 {[%emt 0:00:35]} g6 {[%emt 0:01:22]} 22. Red3 {[%emt 0:01:58]} Be8 {[%emt 0:01:35]} 23. a4 {[%emt 0:00:22]} Qg7 {[%emt 0:02:40]} 24. Ne2 {[%emt 0:01:45]} b5 {[%emt 0:01:20]} 25. cxb6 {[%emt 0:00:42]} (25. a5 $16) 25... Bxb6 $11 {[%emt 0:00:04]} 26. a5 {[%emt 0:01:11]} Ba7 {[%emt 0:00:15]} 27. Kh1 {[%emt 0:00:25]} Rd6 {[%emt 0:02:38]} (27... Rab8 $14) 28. Qc4 $16 {[%emt 0:02:08]} Bb8 {[%emt 0:04:02] [#]} (28... Rb8 $142) 29. Nc3 $1 {[%emt 0:02:01]} Rd8 {[%emt 0:05:12]} 30. Ne4 {[%emt 0:07:51]} (30. Bxc6 $2 Rc8 31. d5 exd5 32. Nxd5 Bxc6 $19) 30... Bd6 {[%emt 0:02:27]} 31. h3 {[%emt 0:03:28]} Be7 {[%emt 0:02:26]} 32. Nd2 {[%emt 0:04:12]} ({White should play} 32. Nc5 $16) 32... Rab8 $11 {[%emt 0:02:06]} 33. Rb1 {[%emt 0:05:28]} Rb5 {[%emt 0:02:56]} (33... c5 $5 34. dxc5 Bb5 35. Rxd8+ Rxd8 $11) 34. Nf3 {[%emt 0:02:25]} (34. Kh2 $5 {[%cal Rd2e4]}) 34... Rdb8 {[%emt 0:01:39][%cal Re7b4]} 35. Rdb3 {[%emt 0:00:40]} Qf8 {[%emt 0:00:51][%cal Re7b4]} 36. Ne5 {[%emt 0:00:15]} Bd6 {[%emt 0:05:07] [#]} (36... Bxb4 $11 {remains equal.} 37. Nxc6 Bxc6 38. Bxc6 Rc8) 37. Nd3 $1 $16 {[%emt 0:03:14] 0x0.0013b8b61644dp-1022s more active pieces. White now steadily converts the win.} (37. Nxc6 Bxc6 38. Qxc6 (38. Bxc6 Rxb4 39. Rxb4 Rxb4 $11) 38... Rxb4 39. Rxb4 Rxb4 $14) (37. Bxc6 $2 Rc8 38. Nxg6 Bxc6+ 39. Qxc6 Rxc6 $19) 37... Qe7 {[%emt 0:03:30]} 38. Nc5 {[%emt 0:04:28]} (38. Bxc6 Rc8 39. Bxb5 Qb7+ 40. Kg1 (40. Bc6 $2 Rxc6 41. Qxc6 Qxc6+ 42. Kg1 Qd5 $19) 40... Rxc4 41. Bxc4 Ba4 $15) 38... Bxc5 {[%emt 0:00:16]} 39. dxc5 {[%emt 0:00:12]} (39. bxc5 $6 Qd8 $14) 39... Qc7 {[%emt 0:01:23]} (39... e5 $16) 40. Qc3 {[%emt 0:00:00]} R5b7 {[%emt 0:00:00]} 41. Bf1 {[%emt 0:00:00][%cal Bg2f1,Bf1e2,Be2c4][%mdl 32]} Ra7 {[%emt 0:00:00]} 42. Rd1 {[%emt 0:00:00]} Rd8 {[%emt 0:00:00]} 43. Rbb1 {[%emt 0:00:00]} Qe7 {[%emt 0:00:00]} 44. Be2 {[%emt 0:00:00]} h5 {[%emt 0:00:00]} 45. h4 {[%emt 0:00:00]} Rd5 {[%emt 0:00:00]} 46. Bc4 {[%emt 0:00:00]} Rd8 {[%emt 0:00:00]} 47. Qc2 {[%emt 0:00:00]} Bd7 {[%emt 0:00:04]} 48. Qd3 {[%emt 0:02:15]} Raa8 {[%emt 0:00:59]} 49. Qe2 {[%emt 0:02:58]} ({Worse is} 49. Bxa6 e5 50. Qd6 Qxd6 51. Rxd6 Rxa6 $11) 49... Re8 {[%emt 0:02:06]} 50. Qe5 {[%emt 0:00:22]} ({Resist} 50. Bxa6 $6 e5 51. Re1 Bg4 $16) 50... Reb8 {[%emt 0:02:13]} (50... Red8 $142 51. Rd4 Bc8) 51. Qc7 {[%emt 0:04:43]} Rd8 {[%emt 0:00:52]} 52. Rd3 {[%emt 0:00:26]} Rac8 {[%emt 0:01:27]} 53. Qd6 {[%emt 0:01:39]} Qf6 {[%emt 0:02:55]} 54. Qe5 {[%emt 0:00:19]} ({But not} 54. Bxa6 Ra8 55. Bc4 Be8 $18) 54... Qe7 {[%emt 0:00:11]} 55. Bxa6 {[%emt 0:01:18]} Be8 {[%emt 0:02:00]} 56. Rbd1 {[%emt 0:02:23]} f6 $2 {[%emt 0:02:21]} (56... Rxd3 57. Rxd3 Rd8) 57. Qe3 {[%emt 0:02:45] Weighted Error Value: White=0.11 (very precise) /Black=0.22 (precise)} 1-0

[Event "2nd Bieszczady Chess-ch A 2022"]
[Site "Bystre"]
[Date "2022.07.19"]
[Round "3.3"]
[White "Dzwierzynski, Bartosz"]
[Black "Kyc, Jerzy"]
[Result "0-1"]
[ECO "D15"]
[WhiteElo "2129"]
[BlackElo "2203"]
[Annotator "TA"]
[PlyCount "38"]
[EventDate "2022.07.17"]
[EventCountry "POL"]
[SourceTitle "playchess.com"]
[Source "ChessBase"]
[SourceQuality "1"]
[TimeControl "5400+30"]

{[%evp 11,38,0,0,0,0,0,0,0,0,0,0,-17,-17,-14,0,-3,8,16,20,-283,-272,-279,-284,-324,-313,-480,-420,-413,-373]} 1. d4 {[%emt 0:00:03]} d5 {[%emt 0:04:14]} 2. c4 {[%emt 0:00:06]} c6 {[%emt 0:00:46]} 3. Nf3 {[%emt 0:00:12]} Nf6 {[%emt 0:00:13]} 4. Nc3 {[%emt 0:00:04]} a6 {[%emt 0:00:35]} 5. a4 {[%emt 0:05:15]} e6 {[%emt 0:05:42]} 6. e3 {[%emt 0:00:07]} c5 {[%emt 0:00:20]} 7. Be2 {[%emt 0:00:42] D15: Slav Defence: 4 Nc3 a6 and gambit lines after 4 Nc3 dxc4.} Nc6 {[%emt 0:00:33]} 8. O-O {[%emt 0:00:11]} cxd4 {[%emt 0:02:13]} 9. exd4 {[%emt 0:00:22] The position is equal.} Be7 {[%emt 0:00:38]} 10. Bf4 {[%emt 0:04:59]} O-O {[%emt 0:00:34]} 11. Ne5 {[%emt 0:06:24]} dxc4 {[%emt 0:01:20]} 12. Nxc6 {[%emt 0:00:22]} bxc6 {[%emt 0:00:03]} 13. Bxc4 {[%emt 0:00:15] [#]} Nd5 $146 {[%emt 0:00:13]} ({Predecessor:} 13... a5 14. Re1 Ba6 15. Ba2 Qb6 16. Be5 Rfd8 17. Qf3 Nd7 18. Bg3 Nf6 19. Be5 Nd7 {½-½ (58) Indjic,A (2604)-Kobalia,M (2620) Sochi 2018}) 14. Be5 {[%emt 0:02:54]} a5 {[%emt 0:03:55]} 15. Ne4 $2 {[%emt 0:04:12][%mdl 8192] This costs White the game.} ({Of course not} 15. Qg4 f6 16. Bf4 Qb6 $15) (15. Rc1 $11 {and White has nothing to worry.}) 15... f6 $19 {[%emt 0:01:14][%cal Bf7f6,Bf6f5,Bf5f4][%mdl 32]} 16. Bg3 {[%emt 0:01:03] [#]} f5 $1 {[%emt 0:00:03]} 17. Nc3 {[%emt 0:11:06]} f4 {[%emt 0:00:17]} 18. Nxd5 {[%emt 0:00:04]} (18. Bxf4 $142 Rxf4 19. g3) 18... cxd5 {[%emt 0:05:59]} 19. Bd3 {[%emt 0:00:05][%cal Od1h5]} Qe8 {[%emt 0:01:29] Inhibits Qh5.  Weighted Error Value: White=0.67/Black=0.05 (flawless)} 0-1